Workbook

Sheet Mont molerski radovi i oprema
A1: 1.000 | C1: МОНТАЖНО-МОЛЕРСКО РАДОВИ И ОПРЕМА ЕНТЕРИЈЕРА:
A2: =IF(B:B<>"",MAX($A$1:A1)+0.001,"") -> 
A3: Поз. | C3: Опис позиције: | D3: Јед.м. | E3: Кол. | G3: Јед. цена без Пдв-а (РСД) | I3: Укупна цена без Пдв-а (РСД)
A5: =IF(B:B<>"",MAX($A$1:A4)+0.001,"") -> 1.001 | B5: : | C5: Израда преградног зида дебљине 100 мм,једнострука метална потконструкција обложена обострано двоструким гипс картонским плоћама ГК12.5 мм. Преградни неносив зид израдити од поцинкованих профила ЦМ50. Саставе обрадити глет масом и бандаж тракама по упутству пројектанта. У цену улази и радна скела. Обраĉун по м2 постављене површине скупа са материјалом и радом.
A7: =IF(B:B<>"",MAX(#REF!)+0.001,"") ->  | D7: m2 | E7: 100.00 | F7: x | H7: =
A9: =IF(B:B<>"",MAX($A$1:A8)+0.001,"") -> 1.002 | B9: : | C9: Облагање зидова гипс картонским плочама ГКБ дебљине 2 x 12,5 мм, са израдом металне подконструкцијом причвршћене за зид. Укупна дебљина облоге је 48 мм. Металну подконструкцију израдити од поцинкованих профила ЦД 60x27 мм, а по пројекту и упутству произвођаĉа. Саставе обрадити глет масом и бандаж траком, по упутству пројектанта. У цену улази и радна скела. Обрачун по м2 постављене површине скупа са материјалом и радом.
A11: =IF(B:B<>"",MAX(#REF!)+0.001,"") ->  | D11: m2 | E11: 240.00 | F11: x | H11: =
A13: =IF(B:B<>"",MAX($A$1:A12)+0.001,"") -> 1.003 | B13: : | C13: 15. Израда скрипторијума од гипс картонских плоча ГКБ дебљине 12,5 мм, са израдом металне потконструкцијц причвршћене за зидове и међуспратну конструкцију. Скрипторијум чине две спојене целине-нише које садрже шест стубова 25/25цм висине 225цм, над којима су формиране две куполе од укрштених лукова. Лукови су горњом страном спојени са међуспратном конструкцијом. Металну потконструкцију израдити од поцинкованих профила, а по пројекту и упутству произвођаĉа. Саставе обрадити глет масом и бандаж траком, по упутству пројектанта. У цену улази и радна скела. Обрачун по м2 постављене развијене површине комплетног скрипторијума скупа са материјалом и радом.
A15: =IF(B:B<>"",MAX(#REF!)+0.001,"") ->  | D15: m2 | E15: 100.00 | F15: x | H15: =
A17: =IF(B:B<>"",MAX($A$1:A16)+0.001,"") -> 1.004 | B17: : | C17: 4 и 19. Израда носача књига од гипс картонских плоча ГКБ дебљине 12,5 мм, са израдом металне потконструкцијце причвршћене у под и плафон. Горњи лучни зид-ваљак, је горњом страном спојен са међуспратном конструкцијом. Металну потконструкцију израдити од поцинкованих профила, а по пројекту и упутству произвођача. Саставе обрадити глет масом и бандаж траком, по упутству пројектанта. У цену улази и радна скела. Обрачун паушално комплетне књиге.
A19: =IF(B:B<>"",MAX(#REF!)+0.001,"") ->  | D19: ком. | E19: 4.00 | F19: x | H19: =
A21: =IF(B:B<>"",MAX($A$1:A20)+0.001,"") -> 1.005 | B21: : | C21: 9. ''Печат'' са плафона. Печат укупних димензија ДџШџВ=240x100x90цм. Печат од од гипс картонских плоча ГКБ дебљине 12,5 мм, са израдом металне потконструкције причвршћене у плафон. На печату израдити словни натпис ЋИРИЛИЦА. Металну потконструкцију израдити од поцинкованих профила, а по пројекту и упутству произвођаĉа. Саставе обрадити глет масом и бандаж траком, по упутству пројектанта. У цену улази и радна скела. Обрачун паушално комплетне позиције.
A23: =IF(B:B<>"",MAX(#REF!)+0.001,"") ->  | D23: ком. | E23: 1.00 | F23: x | H23: =
A25: =IF(B:B<>"",MAX($A$1:A23)+0.001,"") -> 1.006 | B25: : | C25: Бојење унутрашњих зидова и плафона. Бојење постићи висококвалитетном , влагоотпорном бојом до добијања равномерне обојености. Бојом у тону према Палети боја из пројектне документације за наведену просторију. Обрачун по м2.
C27: Плафони: | D27: m2 | E27: 250.00 | F27: x | H27: =
C28: Зидови: | D28: m2 | E28: 550.00 | F28: x | H28: =
A30: =IF(B:B<>"",MAX($A$1:A29)+0.001,"") -> 1.007 | B30: : | C30: Израда ликовних педстава по мотивима Научног тима. На чврстој подлози израдити у атељеу од стране еминентног ликовног уметника трајним бојама ликовне представе према упутству Научног тима и димензијама из пројектне документације. Елемете транспортовати и монтирати на лицу места на за то предвиђене позиције. У цену улази сав материјал и рад, са монтажом. Обрачун по м2.
D32: m2 | E32: 100.00 | F32: x | H32: =
A34: =IF(B:B<>"",MAX($A$1:A33)+0.001,"") -> 1.008 | B34: : | C34: 25. Хоризонтална застакљена витрина за излагање и одлагање у сувенирници. Витрина укупних димензија ДxШxВ=200x60x90цм. Примењени материјали: бојени медиапан, сигурносно стакло, оков са бравицама за закључавање ’’БЛУМ’’ или друго еквивалентних карактеристика. Елемент снабдети потребним инсталацијама за обезбеђење, комуникацију и расвету. У цену урачуната израда према упутству инвеститора уз сагласност пројектанта и уградња. Мере корисцене у предмеру и предрацуну за дату позицију су архитектонске. Мере обавезно проверити на лицу места! Обрачун по комаду.
A36: =IF(B:B<>"",MAX($A$1:A34)+0.001,"") ->  | D36: ком. | E36: 1.00 | F36: x | H36: =
A37: =IF(B:B<>"",MAX($A$1:A36)+0.001,"") -> 
A38: =IF(B:B<>"",MAX($A$1:A37)+0.001,"") -> 1.009 | B38: : | C38: 26. радни сто-каса у сувенирници. Радни сто-каса укупних димензија ДxШxВ=110x55x90цм. Примењени материјали: бојени медиапан, оков са бравицама за закључавање ’’БЛУМ’’ или друго еквивалентних карактеристика. Елемент снабдети потребним инсталацијама за обезбеђење, комуникацију и расвету. У цену урачуната израда према упутству инвеститора уз сагласност пројектанта и уградња. Мере корисцене у предмеру и предрацуну за дату позицију су архитектонске. Мере обавезно проверити на лицу места! Обрачун по комаду.
A40: =IF(B:B<>"",MAX($A$1:A38)+0.001,"") ->  | D40: ком. | E40: 1.00 | F40: x | H40: =
A41: =IF(B:B<>"",MAX($A$1:A40)+0.001,"") -> 
A42: =IF(B:B<>"",MAX($A$1:A41)+0.001,"") -> 1.010 | B42: : | C42: 27. Зидна застакљена полица у сувенирници. Полица димензија ШxВ=30x200цм. Полица са затвореним делом за одлагање у комбинацији бојени медиапан, застакљеним простором за излагање са медијапан леђима, и капителом за уградну расвету. Примењени материјали: фурнир-медиапан, сигурносно стакло, оков са бравицама за закључавање ’’БЛУМ’’ или друго еквивалентних карактеристика. Елемент снабдети потребним инсталацијама за обезбеђење, комуникацију и расвету. У цену урачуната израда према упутству инвеститора уз сагласност пројектанта и уградња. Мере корисцене у предмеру и предрацуну за дату позицију су архитектонске. Мере обавезно проверити на лицу места! Обрачун по м'.
A43: =IF(B:B<>"",MAX($A$1:A42)+0.001,"") -> 
A44: =IF(B:B<>"",MAX($A$1:A43)+0.001,"") ->  | D44: m' | E44: 14.00 | F44: x | H44: =
A46: =IF(B:B<>"",MAX($A$1:A45)+0.001,"") -> 1.011 | B46: : | C46: 5. Вертикална застакљена витрина за излагање експоната. Витрина укупних димензија ДxШxВ=90x45x370цм. Виртрина са постаментом од бојеног МДФ-а, застакљеним простором за излагање, и МДФ капителом за уградну расвету. Примењени материјали: бојени МДФ, сигурносно стакло, оков са бравицама за закључавање ’’БЛУМ’’ или друго еквивалентних карактеристика. Елемент снабдети потребним инсталацијама за обезбеђење, комуникацију и расвету. У цену урачуната израда према упутству инвеститора уз сагласност пројектанта и уградња. Мере корисцене у предмеру и предрацуну за дату позицију су архитектонске. Мере обавезно проверити на лицу места! Обрачун по комаду.
A47: =IF(B:B<>"",MAX($A$1:A46)+0.001,"") -> 
A48: =IF(B:B<>"",MAX($A$1:A47)+0.001,"") ->  | D48: ком. | E48: 3.00 | F48: x | H48: =
A50: =IF(B:B<>"",MAX($A$1:A49)+0.001,"") -> 1.012 | B50: : | C50: 6. Вертикална застакљена витрина за излагање експоната. Витрина укупних димензија ДxШxВ=90x15x370цм. Виртрина са постаментом од бојеног МДФ-а, застакљеним простором за излагање, и МДФ капителом за уградну расвету. Примењени материјали: бојени МДФ, сигурносно стакло, оков са бравицама за закључавање ’’БЛУМ’’ или друго еквивалентних карактеристика. Елемент снабдети потребним инсталацијама за обезбеђење, комуникацију и расвету. У цену урачуната израда према упутству инвеститора уз сагласност пројектанта и уградња. Мере корисцене у предмеру и предрацуну за дату позицију су архитектонске. Мере обавезно проверити на лицу места! Обрачун по комаду.
A51: =IF(B:B<>"",MAX($A$1:A50)+0.001,"") -> 
A52: =IF(B:B<>"",MAX($A$1:A51)+0.001,"") ->  | D52: ком. | E52: 2.00 | F52: x | H52: =
A54: =IF(B:B<>"",MAX($A$1:A53)+0.001,"") -> 1.013 | B54: : | C54: 22. Вертикална застакљена витрина за излагање експоната. Витрина укупних димензија ДxШxВ=140x15x370цм. Виртрина са постаментом од бојеног МДФ-а, застакљеним простором за излагање, и МДФ капителом за уградну расвету. Примењени материјали: бојени МДФ, сигурносно стакло, оков са бравицама за закључавање ’’БЛУМ’’ или друго еквивалентних карактеристика. Елемент снабдети потребним инсталацијама за обезбеђење, комуникацију и расвету. У цену урачуната израда према упутству инвеститора уз сагласност пројектанта и уградња. Мере корисцене у предмеру и предрацуну за дату позицију су архитектонске. Мере обавезно проверити на лицу места! Обрачун по комаду.
A55: =IF(B:B<>"",MAX($A$1:A54)+0.001,"") -> 
A56: =IF(B:B<>"",MAX($A$1:A55)+0.001,"") ->  | D56: ком. | E56: 2.00 | F56: x | H56: =
A58: =IF(B:B<>"",MAX($A$1:A57)+0.001,"") -> 1.014 | B58: : | C58: 8. Вертикална застакљена витрина за излагање експоната. Витрина укупних димензија ДxШxВ=250x15x370цм. Виртрина са постаментом од бојеног МДФ-а, застакљеним простором за излагање, и МДФ капителом за уградну расвету. Примењени материјали: бојени МДФ, сигурносно стакло, оков са бравицама за закључавање ’’БЛУМ’’ или друго еквивалентних карактеристика. Елемент снабдети потребним инсталацијама за обезбеђење, комуникацију и расвету. У цену урачуната израда према упутству инвеститора уз сагласност пројектанта и уградња. Мере корисцене у предмеру и предрацуну за дату позицију су архитектонске. Мере обавезно проверити на лицу места! Обрачун по комаду.
A59: =IF(B:B<>"",MAX($A$1:A58)+0.001,"") -> 
A60: =IF(B:B<>"",MAX($A$1:A59)+0.001,"") ->  | D60: ком. | E60: 1.00 | F60: x | H60: =
A62: =IF(B:B<>"",MAX($A$1:A61)+0.001,"") -> 1.015 | B62: : | C62: 36. Вертикална застакљена витрина за излагање експоната. Витрина укупних димензија ДxШxВ=110x15x370цм. Виртрина са постаментом од бојеног МДФ-а, застакљеним простором за излагање, и МДФ капителом за уградну расвету. Примењени материјали: бојени МДФ, сигурносно стакло, оков са бравицама за закључавање ’’БЛУМ’’ или друго еквивалентних карактеристика. Елемент снабдети потребним инсталацијама за обезбеђење, комуникацију и расвету. У цену урачуната израда према упутству инвеститора уз сагласност пројектанта и уградња. Мере корисцене у предмеру и предрацуну за дату позицију су архитектонске. Мере обавезно проверити на лицу места! Обрачун по комаду.
A63: =IF(B:B<>"",MAX($A$1:A62)+0.001,"") -> 
A64: =IF(B:B<>"",MAX($A$1:A63)+0.001,"") ->  | D64: ком. | E64: 1.00 | F64: x | H64: =
A66: =IF(B:B<>"",MAX($A$1:A64)+0.001,"") -> 1.016 | B66: : | C66: 10. Хоризонтална застакљена витрина за излагање експоната. Витрина укупних димензија ДxШxВ=140x45x90цм. Виртрина са постаментом од бојеног МДФ-а и застакљеним простором за излагање. Примењени материјали: бојени МДФ, сигурносно стакло, оков са бравицама за закључавање ’’БЛУМ’’ или друго еквивалентних карактеристика. Елемент снабдети потребним инсталацијама за обезбеђење, комуникацију и расвету. У цену урачуната израда према упутству инвеститора уз сагласност пројектанта и уградња. Мере корисцене у предмеру и предрацуну за дату позицију су архитектонске. Мере обавезно проверити на лицу места! Обрачун по комаду.
A67: =IF(B:B<>"",MAX($A$1:A66)+0.001,"") -> 
A68: =IF(B:B<>"",MAX($A$1:A67)+0.001,"") ->  | D68: ком. | E68: 2.00 | F68: x | H68: =
A70: =IF(B:B<>"",MAX($A$1:A69)+0.001,"") -> 1.017 | B70: : | C70: 14. Хоризонтална застакљена витрина за излагање експоната. Витрина укупних димензија ДxШxВ=120x45x90цм. Виртрина са постаментом од бојеног МДФ-а и застакљеним простором за излагање. Примењени материјали: бојени МДФ, сигурносно стакло, оков са бравицама за закључавање ’’БЛУМ’’ или друго еквивалентних карактеристика. Елемент снабдети потребним инсталацијама за обезбеђење, комуникацију и расвету. У цену урачуната израда према упутству инвеститора уз сагласност пројектанта и уградња. Мере корисцене у предмеру и предрацуну за дату позицију су архитектонске. Мере обавезно проверити на лицу места! Обрачун по комаду.
A71: =IF(B:B<>"",MAX($A$1:A70)+0.001,"") -> 
A72: =IF(B:B<>"",MAX($A$1:A71)+0.001,"") ->  | C72: Prostorija 5: | D72: kom. | E72: 2.00 | F72: x | H72: =
A74: =IF(B:B<>"",MAX($A$1:A73)+0.001,"") -> 1.018 | B74: : | C74: 21. Хоризонтална застакљена витрина за излагање експоната. Витрина укупних димензија ДxШxВ=120x45x90цм. Виртрина са постаментом од бојеног МДФ-а и застакљеним простором за излагање. Примењени материјали: бојени МДФ, сигурносно стакло, оков са бравицама за закључавање ’’БЛУМ’’ или друго еквивалентних карактеристика. Елемент снабдети потребним инсталацијама за обезбеђење, комуникацију и расвету. У цену урачуната израда према упутству инвеститора уз сагласност пројектанта и уградња. Мере корисцене у предмеру и предрацуну за дату позицију су архитектонске. Мере обавезно проверити на лицу места! Обрачун по комаду.
A75: =IF(B:B<>"",MAX($A$1:A74)+0.001,"") -> 
A76: =IF(B:B<>"",MAX($A$1:A75)+0.001,"") ->  | D76: ком. | E76: 3.00 | F76: x | H76: =
A78: =IF(B:B<>"",MAX($A$1:A77)+0.001,"") -> 1.019 | B78: : | C78: 39. Хоризонтална застакљена витрина за излагање експоната. Витрина укупних димензија ДxШxВ=230x45x90цм. Виртрина са постаментом од бојеног МДФ-а и застакљеним простором за излагање. Примењени материјали: бојени МДФ, сигурносно стакло, оков са бравицама за закључавање ’’БЛУМ’’ или друго еквивалентних карактеристика. Елемент снабдети потребним инсталацијама за обезбеђење, комуникацију и расвету. У цену урачуната израда према упутству инвеститора уз сагласност пројектанта и уградња. Мере корисцене у предмеру и предрацуну за дату позицију су архитектонске. Мере обавезно проверити на лицу места! Обрачун по комаду.
A79: =IF(B:B<>"",MAX($A$1:A78)+0.001,"") -> 
A80: =IF(B:B<>"",MAX($A$1:A79)+0.001,"") ->  | D80: ком. | E80: 2.00 | F80: x | H80: =
A82: =IF(B:B<>"",MAX($A$1:A80)+0.001,"") -> 1.020 | B82: : | C82: 32. Хоризонтални постамент за таблете. Постамент укупних димензија ДxШxВ=220x50x90цм. Постамент од бојеног МДФ-а. Елемент снабдети потребним инсталацијама за обезбеђење, комуникацију и расвету. У цену урачуната израда према упутству инвеститора уз сагласност пројектанта и уградња. Мере корисцене у предмеру и предрацуну за дату позицију су архитектонске. Мере обавезно проверити на лицу места! Обрачун по комаду.
A83: =IF(B:B<>"",MAX($A$1:A82)+0.001,"") -> 
A84: =IF(B:B<>"",MAX($A$1:A83)+0.001,"") ->  | D84: ком. | E84: 4.00 | F84: x | H84: =
A86: =IF(B:B<>"",MAX($A$1:A85)+0.001,"") -> 1.021 | B86: : | C86: 38. Хоризонтални постамент за таблете. Постамент укупних димензија ДxШxВ=175x50x90цм. Постамент од бојеног МДФ-а. Елемент снабдети потребним инсталацијама за обезбеђење, комуникацију и расвету. У цену урачуната израда према упутству инвеститора уз сагласност пројектанта и уградња. Мере корисцене у предмеру и предрацуну за дату позицију су архитектонске. Мере обавезно проверити на лицу места! Обрачун по комаду.
A87: =IF(B:B<>"",MAX($A$1:A86)+0.001,"") -> 
A88: =IF(B:B<>"",MAX($A$1:A87)+0.001,"") ->  | D88: ком. | E88: 2.00 | F88: x | H88: =
A90: =IF(B:B<>"",MAX($A$1:A89)+0.001,"") -> 1.022 | B90: : | C90: 39. Хоризонтални постамент за таблете. Постамент укупних димензија ДxШxВ=120x50x90цм. Постамент од бојеног МДФ-а. Елемент снабдети потребним инсталацијама за обезбеђење, комуникацију и расвету. У цену урачуната израда према упутству инвеститора уз сагласност пројектанта и уградња. Мере корисцене у предмеру и предрацуну за дату позицију су архитектонске. Мере обавезно проверити на лицу места! Обрачун по комаду.
A91: =IF(B:B<>"",MAX($A$1:A90)+0.001,"") -> 
A92: =IF(B:B<>"",MAX($A$1:A91)+0.001,"") ->  | D92: ком. | E92: 1.00 | F92: x | H92: =
A94: =IF(B:B<>"",MAX($A$1:A92)+0.001,"") -> 1.023 | B94: : | C94: 4 и 19. Изложбене књиге. Књиге укупних димензија 2xШxВ=2x150x180цм. Књиге од бојеног МДФ-а. Елемент снабдети потребним инсталацијама за обезбеђење, комуникацију и расвету. У цену урачуната израда према упутству инвеститора уз сагласност пројектанта и уградња. Мере корисцене у предмеру и предрацуну за дату позицију су архитектонске. Мере обавезно проверити на лицу места! Обрачун по комаду.
A95: =IF(B:B<>"",MAX($A$1:A94)+0.001,"") -> 
A96: =IF(B:B<>"",MAX($A$1:A95)+0.001,"") ->  | D96: ком. | E96: 2.00 | F96: x | H96: =
A98: =IF(B:B<>"",MAX($A$1:A97)+0.001,"") -> 1.024 | B98: : | C98: 4 и 19. Хоризонтална лучна изложбена витрина за књиге. Витрина је део веће композиције ''књига'' и налази се унутар подног елемента од гипскартонских плоча.Витрина укупних димензија ШxВ=180x15цм. Витрина од бојеног МДФ-а застакљена сигурносним стаклом. Елемент снабдети потребним инсталацијама за обезбеђење, комуникацију и расвету. У цену урачуната израда према упутству инвеститора уз сагласност пројектанта и уградња. Мере корисцене у предмеру и предрацуну за дату позицију су архитектонске. Мере обавезно проверити на лицу места! Обрачун по комаду.
A99: =IF(B:B<>"",MAX($A$1:A98)+0.001,"") -> 
A100: =IF(B:B<>"",MAX($A$1:A99)+0.001,"") ->  | D100: ком. | E100: 2.00 | F100: x | H100: =
A102: =IF(B:B<>"",MAX($A$1:A101)+0.001,"") -> 1.025 | B102: : | C102: 33. Декоративне облоге у позицији надвратника. Облоге од бојеног МДФ-а у свему према пројектној документацији. У цену урачуната израда према упутству инвеститора уз сагласност пројектанта и уградња. Мере корисцене у предмеру и предрацуну за дату позицију су архитектонске. Мере обавезно проверити на лицу места! Обрачун по м2 облоге.
A103: =IF(B:B<>"",MAX($A$1:A102)+0.001,"") -> 
A104: =IF(B:B<>"",MAX($A$1:A103)+0.001,"") ->  | D104: m2 | E104: 18.00 | F104: x | H104: =
A106: =IF(B:B<>"",MAX($A$1:A105)+0.001,"") -> 1.026 | B106: : | C106: 2. Декоративна слова од бојеног МДФ-а. Слова од бојеног МДФ-а у свему према пројектној документацији. У цену урачуната израда према упутству инвеститора уз сагласност пројектанта и уградња. Мере корисцене у предмеру и предрацуну за дату позицију су архитектонске. Мере обавезно проверити на лицу места! Обрачун по ком.
A107: =IF(B:B<>"",MAX($A$1:A106)+0.001,"") -> 
A108: =IF(B:B<>"",MAX($A$1:A107)+0.001,"") ->  | D108: kom. | E108: 60.00 | F108: x | H108: =
A110: =IF(B:B<>"",MAX($A$1:A109)+0.001,"") -> 1.027 | B110: : | C110: Подлога за легенду/штампани материјал. Подлога од белог медијапана на подконструкцији причвршћеној на чврсту подлогу помоћу металних везних средстава. У цену урачуната израда према упутству инвеститора уз сагласност пројектанта и уградња. Мере корисцене у предмеру и предрацуну за дату позицију су архитектонске. Мере обавезно проверити на лицу места! Обрачун по м2.
A111: =IF(B:B<>"",MAX($A$1:A110)+0.001,"") -> 
A112: =IF(B:B<>"",MAX($A$1:A111)+0.001,"") ->  | D112: m2 | E112: 100.00 | F112: x | H112: =
A114: =IF(B:B<>"",MAX($A$1:A113)+0.001,"") -> 1.028 | B114: : | C114: Расвета ЛЕД рефлекторима на шинама (један рефлектор по м’). У цену улазе шине, расвета, и сав везни материјал. У цену НЕ улази примарни развод електроинсталација до позиција шинске расвете. Користити трофазну расвету типа ’’ЛТЦ’’, ’’ОСРАМ’’, ’’ФИЛИПС’’... вишег квалитета по избору инвеститора уз сагласност пројектанта. Обрачун по м'.
A116: =IF(B:B<>"",MAX($A$1:A115)+0.001,"") ->  | D116: m' | E116: 70.00 | F116: x | H116: =
A117: =IF(B:B<>"",MAX($A$1:A116)+0.001,"") -> 
A118: =IF(B:B<>"",MAX($A$1:A117)+0.001,"") -> 1.029 | B118: : | C118: Набавка и постављање тешких роло завеса висине 240цм. Завесе са свим потребним прибором за качење. Завесе по избору инвеститора уз сагласност пројектанта. Обрачун по м' хоризонталне пројекције.
D120: m' | E120: 19.00 | F120: x | H120: =
A122: =IF(B:B<>"",MAX($A$1:A121)+0.001,"") -> 1.030 | B122: : | C122: Канцеларијска столица. Набавка канцеларијске столице према упутству инвеститора уз сагласност пројектанта. Обрачун по комаду.
A123: =IF(B:B<>"",MAX($A$1:A122)+0.001,"") -> 
A124: =IF(B:B<>"",MAX($A$1:A123)+0.001,"") ->  | D124: ком. | E124: 1.00 | F124: x | H124: =
A126: =IF(B:B<>"",MAX($A$1:A125)+0.001,"") -> 1.031 | B126: : | C126: Израда и постављање лутке Светог апостола и јеванђелисте Луке у природној величини. Лутку израдити и поставити на пројектом предвиђено место према упутствима Инвеститора. Обрачун по ком.
D128: ком. | E128: 1.00 | F128: x | H128: =
A130: УКУПНА ЦЕНА БЕЗ ПДВ-А:
A131: УКУПНА ЦЕНА СА ПДВ-ОМ:
